bitfinex/quotes_SOLUSD_20250714
["timestamp","ask_amount","ask_price","bid_price","bid_amount"]
[1752513462842,0.06,164.73,164.72,45.28511978]
[1752513463145,0.06,164.73,164.72,45.94511978]
[1752513463317,0.06,164.73,164.72,52.01602798]
[1752513463728,0.06,164.73,164.72,51.98812666]
[1752513463949,0.06,164.73,164.72,52.59521748]
[1752513466022,0.06,164.73,164.72,5.7528978]
[1752513466228,0.06,164.73,164.72,11.87151272]
[1752513466428,0.06,164.73,164.72,17.94242092]
[1752513466663,0.06,164.73,164.72,19.20951174]
[1752513466856,0.06,164.73,164.72,26.59521748]
[1752513467152,0.06,164.73,164.72,48.1094105]
[1752513467347,0.06,164.73,164.72,64.89409447]
[1752513468367,0.06,164.76,164.73,16.78468397]
[1752513468549,0.06,164.76,164.74,0.60701711]
[1752513468728,0.06,164.76,164.75,8.04570574]
[1752513468930,0.06,164.76,164.75,7.38570574]
[1752513470939,0.06,164.76,164.75,13.45550847]
[1752513471968,0.06,164.76,164.75,14.11550847]
[1752513473278,0.06,164.76,164.75,30.90019244]
[1752513473470,0.06,164.76,164.75,61.70019244]
[1752513475260,0.06,164.77,164.75,61.70019244]
[1752513475573,0.06,164.77,164.76,8.65264917]
[1752513476166,0.1,164.79,164.78,16.78468397]
[1752513476373,1e-08,164.79,164.78,32.16296521]
[1752513476574,1e-08,164.79,164.78,32.82296521]
[1752513476873,0.06,164.8,164.79,31.55609545]
[1752513477070,0.06,164.8,164.79,63.01609545]
[1752513478374,0.06,164.8,164.79,61.69871909]
[1752513479367,1e-08,164.8,164.79,69.08442483]
[1752513480582,1e-08,164.8,164.79,44.94403512]
[1752513480963,1e-08,164.8,164.79,44.25403512]
[1752513481161,0.67000001,164.8,164.78,6.06861947]
[1752513481380,0.67,164.79,164.78,13.45432521]
[1752513482167,1e-08,164.8,164.78,14.14432521]
[1752513482361,1e-08,164.8,164.79,7.38570574]
[1752513482564,1e-08,164.8,164.78,7.38570574]
[1752513482877,1e-08,164.8,164.77,13.45472922]
[1752513483086,0.67,164.79,164.77,13.45472922]
[1752513483272,0.67,164.78,164.77,13.45472922]
[1752513484070,0.67000001,164.8,164.77,13.45472922]
[1752513484269,1e-08,164.8,164.79,7.38570574]
[1752513484489,1e-08,164.8,164.78,7.38570574]
[1752513484782,1e-08,164.8,164.79,7.38570574]
[1752513484966,0.67000001,164.8,164.79,7.38570574]
[1752513485581,1e-08,164.8,164.79,7.38570574]
[1752513486794,0.67000001,164.8,164.79,7.38570574]
[1752513487303,1e-08,164.8,164.79,7.38570574]
[1752513487472,1e-08,164.8,164.79,13.45403512]
[1752513488105,1e-08,164.8,164.79,14.06086805]
[1752513488770,1e-08,164.8,164.79,14.75086805]
[1752513488969,1e-08,164.8,164.79,14.06086805]
[1752513489280,1e-08,164.8,164.79,7.38570574]
[1752513489487,0.67000001,164.8,164.79,7.38570574]
[1752513489898,1e-08,164.8,164.79,7.38570574]
[1752513492095,1e-08,164.8,164.78,6.068627]
[1752513492096,0.67000001,164.8,164.77,7.38570574]
[1752513492293,0.67000001,164.8,164.76,7.38570574]
[1752513492889,0.67000001,164.8,164.74,6.07013994]
[1752513493087,6.06832938,164.79,164.73,6.07032134]
[1752513493287,0.67,164.78,164.75,7.38570574]
[1752513493679,0.67,164.78,164.73,6.07032134]
[1752513493880,0.67,164.78,164.75,7.38570574]
[1752513494398,0.67,164.77,164.75,7.38570574]
[1752513495496,6.06832938,164.79,164.75,7.38570574]
[1752513495701,0.67,164.76,164.75,7.38570574]
[1752513495990,0.67,164.76,164.74,7.38570574]
[1752513496194,0.67,164.75,164.74,7.38570574]
[1752513497399,6.06881748,164.78,164.74,7.38570574]
[1752513497590,0.67,164.77,164.74,7.38570574]
[1752513497789,0.67,164.76,164.74,7.38570574]
[1752513498096,6.06881748,164.78,164.74,7.38570574]
[1752513498404,0.67,164.75,164.73,7.38570574]
[1752513499877,0.67,164.75,164.72,0.03]
[1752513500073,6.73992472,164.75,164.72,0.03]
[1752513500496,0.67,164.74,164.72,0.03]
[1752513501293,6.07053967,164.73,164.72,0.03]
[1752513501782,6.74053967,164.73,164.72,0.03]
[1752513503329,154.64053967,164.73,164.72,0.03]
[1752513503491,185.48053967,164.73,164.72,0.03]
[1752513504946,190.23403362,164.73,164.72,0.03]
[1752513505829,185.48053967,164.73,164.72,0.03]
[1752513507117,148.57,164.73,164.72,0.03]
[1752513507316,179.41,164.73,164.72,0.03]
[1752513507611,148.57,164.73,164.72,0.03]
[1752513507816,179.41,164.73,164.72,0.03]
[1752513508942,185.48053967,164.73,164.72,0.03]
[1752513511105,148.57,164.73,164.72,0.03]
[1752513511624,179.41,164.73,164.72,0.03]
[1752513511829,178.74,164.73,164.72,0.03]
[1752513512206,178.76,164.73,164.72,0.03]
[1752513512617,179.41,164.73,164.72,0.03]
[1752513512814,148.55,164.73,164.72,0.03]
[1752513513028,179.41,164.73,164.72,0.03]
[1752513513237,179.39,164.73,164.72,0.03]
[1752513513530,148.55,164.73,164.72,0.03]
[1752513513732,179.39,164.73,164.72,0.03]
[1752513514035,185.46053967,164.73,164.72,0.03]
[1752513514624,154.62053967,164.73,164.72,0.03]
[1752513515002,185.46053967,164.73,164.72,0.03]
[1752513515827,179.39,164.73,164.72,0.03]
[1752513518041,185.46053967,164.73,164.72,0.03]
[1752513521233,185.44053967,164.73,164.72,0.03]
[1752513523330,154.62053967,164.73,164.72,0.03]
[1752513523648,185.44053967,164.73,164.72,0.03]
[1752513524767,179.37,164.73,164.72,0.03]
[1752513525056,185.44053967,164.73,164.72,0.03]
[1752513528239,148.55,164.73,164.72,0.03]
[1752513528419,178.72,164.73,164.72,0.03]
[1752513531118,179.37,164.73,164.72,0.03]
[1752513532923,148.55,164.73,164.72,0.03]
[1752513533129,179.37,164.73,164.72,0.03]
[1752513533934,148.55,164.73,164.72,0.03]
[1752513534134,179.37,164.73,164.72,0.03]
[1752513535033,148.55,164.73,164.72,0.03]
[1752513535231,179.37,164.73,164.72,0.03]
[1752513540542,148.55,164.73,164.72,0.03]
[1752513540857,179.37,164.73,164.72,0.03]
[1752513541177,178.72,164.73,164.72,0.03]
[1752513543271,147.9,164.73,164.72,0.03]
[1752513543471,178.72,164.73,164.72,0.03]
[1752513544068,147.9,164.73,164.72,0.03]
[1752513544465,178.72,164.73,164.72,0.03]
[1752513544656,179.4,164.73,164.72,0.03]
[1752513545149,185.47053967,164.73,164.72,0.03]
[1752513551359,211.47053967,164.73,164.72,0.03]
[1752513551561,216.23259016,164.73,164.72,0.03]
[1752513552166,220.32264314,164.73,164.72,0.03]
[1752513553857,147.9,164.73,164.72,0.03]
[1752513554052,148.58,164.77,164.72,8.13570574]
[1752513554259,30.82,164.76,164.72,8.13570574]
[1752513554457,0.68,164.75,164.72,8.13570574]
[1752513554661,30.82,164.74,164.72,8.13570574]
[1752513554854,30.82,164.73,164.72,8.13570574]
[1752513556983,30.82,164.73,164.72,0.03]
[1752513557159,30.82,164.73,164.72,7.41570574]
[1752513557678,31.5,164.73,164.72,0.03]
[1752513557976,30.82,164.73,164.72,0.03]
[1752513558378,31.5,164.73,164.72,0.03]
[1752513558676,37.57053967,164.73,164.72,0.03]
[1752513565888,6.75053967,164.73,164.72,0.03]
[1752513566204,37.57053967,164.73,164.72,0.03]
[1752513566998,26.0,164.75,164.72,0.03]
[1752513567197,30.82,164.74,164.72,0.03]
[1752513567406,6.06990957,164.75,164.72,0.75]
[1752513567712,26.0,164.66,164.65,0.03]
[1752513567877,56.82,164.66,164.65,0.03]
[1752513568579,57.4,164.66,164.65,0.03]
[1752513569506,63.47312036,164.66,164.65,0.03]
[1752513571799,80.25780433,164.66,164.65,0.03]
[1752513572002,62.89312036,164.66,164.65,0.03]
[1752513572388,63.05312036,164.66,164.65,0.03]
[1752513572593,63.05312036,164.66,164.65,0.68]
[1752513573401,26.0,164.67,164.65,0.68]
[1752513573605,30.98,164.66,164.65,0.68]
[1752513574492,147.9,164.68,164.65,0.68]
[1752513574678,30.98,164.67,164.65,0.68]
[1752513574882,30.98,164.66,164.65,0.68]
[1752513575806,30.98,164.66,164.65,6.75345066]
[1752513576350,26.0,164.68,164.65,6.75345066]
[1752513576557,30.98,164.67,164.66,0.65]
[1752513577061,26.0,164.68,164.66,0.65]
[1752513577353,30.98,164.67,164.66,0.65]
[1752513578252,150.141,164.73,164.66,6.72311316]
[1752513578423,37.05102876,164.72,164.67,0.65]
[1752513578622,26.0,164.71,164.67,0.65]
[1752513578853,30.98,164.7,164.67,0.65]
[1752513579627,30.96,164.69,164.67,0.65]
[1752513579828,30.96,164.68,164.67,0.65]
[1752513581035,26.0,164.7,164.67,0.65]
[1752513581236,30.96,164.69,164.67,0.65]
[1752513582145,37.03205582,164.69,164.67,0.65]
[1752513583034,37.03205582,164.69,164.65,0.68]
[1752513583542,184.93205582,164.69,164.66,0.65]
[1752513585922,0.58,164.68,164.65,0.03]
[1752513586155,30.96,164.67,164.65,0.03]
[1752513586539,31.54,164.67,164.65,0.03]
[1752513586740,30.96,164.67,164.65,0.03]
[1752513587344,37.03277273,164.67,164.65,0.03]
[1752513587628,37.03277273,164.67,164.66,0.65]
[1752513588149,37.01277273,164.67,164.65,0.03]
[1752513588349,37.01277273,164.67,164.65,0.68]
[1752513589254,30.94,164.66,164.65,0.68]
[1752513589461,30.94,164.66,164.65,0.03]
[1752513589863,37.01312036,164.66,164.65,0.03]
[1752513590526,30.94,164.66,164.65,0.68]
[1752513592369,147.9,164.69,164.65,14.13916984]
[1752513592676,30.94,164.68,164.66,8.03570574]
[1752513592872,30.94,164.68,164.65,13.48916984]
[1752513593052,30.94,164.68,164.67,0.65]
[1752513594473,30.94,164.68,164.67,6.72275156]
[1752513597478,147.9,164.69,164.67,6.72275156]
[1752513597779,30.92,164.68,164.67,6.07275156]
[1752513598480,147.9,164.69,164.66,13.45868523]
[1752513598686,30.92,164.68,164.66,13.45868523]
[1752513598856,30.92,164.68,164.67,0.7]
[1752513599694,30.92,164.68,164.65,0.73]
[1752513599992,36.99238957,164.68,164.65,0.73]
[1752513600177,63.57238957,164.68,164.65,0.03]
[1752513600361,0.58,164.67,164.65,0.03]
[1752513600561,30.92,164.66,164.65,0.03]
[1752513603199,30.92,164.66,164.65,0.73]
[1752513603364,30.9,164.67,164.65,8.11570574]
[1752513603570,30.9,164.67,164.66,0.7]
[1752513606083,30.9,164.67,164.65,0.03]
[1752513606273,37.55279083,164.67,164.65,0.03]
[1752513606676,0.58,164.66,164.65,0.03]
[1752513606996,6.65312036,164.66,164.65,0.03]
[1752513608780,32.65312036,164.66,164.65,0.03]
[1752513611491,27.5168986,164.66,164.65,1e-08]
[1752513611903,36.99312036,164.66,164.65,1e-08]
[1752513612067,62.99312036,164.66,164.65,1e-08]
[1752513612796,30.92,164.66,164.65,1e-08]
[1752513613290,6.07280057,164.67,164.65,1e-08]
[1752513613483,30.92,164.66,164.65,1e-08]
[1752513614101,35.8159012,164.68,164.65,1e-08]
[1752513614322,29.16341679,164.68,164.65,0.70000001]
[1752513614606,30.92,164.67,164.66,0.7]
[1752513614975,14.91842445,164.69,164.66,0.7]
[1752513615211,14.91842445,164.69,164.66,8.08570574]
[1752513615412,30.92,164.68,164.67,14.1584573]
[1752513615779,30.92,164.68,164.67,6.77275156]
[1752513616397,14.91842445,164.69,164.67,6.77275156]
[1752513616604,30.92,164.68,164.67,6.07275156]
[1752513617086,30.92,164.68,164.67,6.77275156]
[1752513621805,30.92,164.68,164.65,1e-08]
[1752513621995,30.92,164.68,164.66,6.77311125]
[1752513622195,30.92,164.68,164.67,0.7]
[1752513622703,30.92,164.68,164.66,6.77311125]
[1752513623008,14.91842445,164.69,164.67,8.08570574]
[1752513623189,14.91842445,164.69,164.68,8.08570574]
[1752513623598,14.91842445,164.69,164.68,0.7]
[1752513624209,45.83842445,164.69,164.66,8.08570574]
[1752513624414,45.83842445,164.69,164.67,0.7]
[1752513624987,45.83842445,164.69,164.65,6.77335774]
[1752513625194,0.58,164.68,164.65,1e-08]
[1752513625392,30.92,164.67,164.65,1e-08]
[1752513625598,31.5,164.67,164.65,1e-08]
[1752513626108,37.57281117,164.67,164.65,1e-08]
[1752513626283,0.58,164.66,164.65,1e-08]
[1752513626690,36.99281117,164.67,164.65,1e-08]
[1752513627311,37.57281117,164.67,164.65,1e-08]
[1752513628605,0.58,164.66,164.65,1e-08]
[1752513629021,30.92,164.66,164.65,1e-08]
[1752513629220,32.07252334,164.68,164.65,0.72000001]
[1752513629424,30.92,164.67,164.65,0.72000001]
[1752513629928,30.92,164.67,164.65,1e-08]
[1752513630308,36.99283679,164.67,164.65,1e-08]
[1752513630523,37.57283679,164.67,164.65,1e-08]
[1752513631137,36.99283679,164.67,164.65,1e-08]
[1752513631430,0.58,164.66,164.65,1e-08]
[1752513632330,6.65312036,164.66,164.65,1e-08]
[1752513632528,6.07312036,164.66,164.65,1e-08]
[1752513633034,36.99312036,164.66,164.65,1e-08]
[1752513633526,36.97312036,164.66,164.65,1e-08]
[1752513633737,6.07312036,164.66,164.65,1e-08]
[1752513633907,36.97312036,164.66,164.65,1e-08]
[1752513634107,6.07312036,164.66,164.65,1e-08]
[1752513634308,36.97312036,164.66,164.65,1e-08]
[1752513636614,37.55312036,164.66,164.65,1e-08]
[1752513636821,185.45312036,164.66,164.65,1e-08]
[1752513638830,184.87312036,164.66,164.65,1e-08]
[1752513639337,153.97312036,164.66,164.65,1e-08]
[1752513639629,184.85312036,164.66,164.65,1e-08]
[1752513640214,153.97312036,164.66,164.65,1e-08]
[1752513640414,184.85312036,164.66,164.65,1e-08]
[1752513640625,154.55312036,164.66,164.65,1e-08]
[1752513640822,40.69718159,164.66,164.65,1e-08]
[1752513641030,59.05806556,164.66,164.65,1e-08]
[1752513641551,63.12662601,164.66,164.65,1e-08]
[1752513641913,69.46332601,164.66,164.65,1e-08]
[1752513642238,26.0,164.62,164.58,0.75]
[1752513642421,30.88,164.61,164.58,0.75]
[1752513643139,31.46,164.61,164.58,0.03]
[1752513643440,37.53508646,164.61,164.58,0.03]
[1752513644118,0.58,164.6,164.58,0.03]
[1752513644316,30.88,164.59,164.58,0.03]
[1752513644714,0.58,164.59,164.58,0.03]
[1752513644913,31.46,164.59,164.58,0.03]
[1752513645338,63.53570326,164.59,164.58,0.03]
[1752513645526,31.53828723,164.59,164.58,0.03]
[1752513645931,62.49828723,164.59,164.58,0.03]
[1752513646718,31.53828723,164.59,164.58,0.03]
[1752513646919,6.07570326,164.59,164.58,0.03]
[1752513647122,30.96,164.59,164.58,0.03]
[1752513647840,37.03570326,164.59,164.58,0.03]
[1752513648039,30.96,164.59,164.58,0.03]
[1752513648547,37.03570326,164.59,164.58,0.03]
[1752513649137,30.96,164.59,164.58,0.03]
[1752513649526,48.32468397,164.59,164.58,0.03]
[1752513649840,54.46038723,164.59,164.58,0.03]
[1752513650025,6.65570326,164.59,164.58,0.03]
[1752513650225,63.09570326,164.59,164.58,0.03]
[1752513650430,63.67570326,164.59,164.58,0.03]
[1752513650924,63.09570326,164.59,164.58,0.03]
[1752513651127,57.02,164.59,164.58,0.75]
[1752513651328,63.09570326,164.59,164.58,0.03]
[1752513652223,63.67570326,164.59,164.58,0.03]
[1752513652820,63.09570326,164.59,164.58,0.03]
[1752513654441,26.0,164.59,164.58,0.03]
[1752513654642,63.09570326,164.59,164.58,0.03]
[1752513656426,57.02,164.59,164.58,0.75]
[1752513657931,26.0,164.59,164.58,0.75]
[1752513658242,31.02,164.59,164.58,8.13570574]
[1752513659954,31.02,164.59,164.58,0.75]
[1752513661030,37.09570326,164.59,164.58,0.03]
[1752513661363,37.67570326,164.59,164.58,0.03]
[1752513663362,6.07570326,164.59,164.58,0.03]
[1752513663663,37.07570326,164.59,164.58,0.03]
[1752513663830,37.65570326,164.59,164.58,0.03]
[1752513665167,37.65570326,164.59,164.56,0.2]
[1752513665168,26.0,164.57,164.56,0.2]
[1752513665351,57.0,164.57,164.56,0.2]
[1752513665542,57.58,164.57,164.56,0.2]
[1752513665736,63.65644163,164.57,164.56,0.2]
[1752513666472,63.07644163,164.57,164.56,0.2]
[1752513666984,63.65644163,164.57,164.56,0.2]
[1752513667155,63.07644163,164.57,164.56,0.2]
[1752513668650,31.0,164.57,164.56,0.91]
[1752513669254,6.07607145,164.59,164.56,0.91]
[1752513669450,3.16486426,164.63,164.56,0.91]
[1752513669451,31.0,164.58,164.57,0.71]
[1752513669682,3.74486426,164.63,164.57,0.71]
[1752513669683,9.23920249,164.63,164.57,8.09570574]
[1752513669883,9.23920249,164.63,164.58,7.38570574]
[1752513670064,31.02,164.62,164.57,7.38570574]
[1752513670385,31.02,164.62,164.59,0.71]
[1752513671084,26.0,164.6,164.59,0.71]
[1752513671384,26.0,164.58,164.56,0.2]
[1752513671568,31.02,164.57,164.56,0.2]
[1752513671770,37.09644163,164.57,164.56,0.2]
[1752513674364,37.09644163,164.57,164.56,0.91]
[1752513674567,6.07644163,164.57,164.56,0.91]
[1752513674786,32.07570326,164.59,164.58,0.03]
[1752513674997,63.09570326,164.59,164.58,0.03]
[1752513675180,26.0,164.59,164.58,0.74]
[1752513675384,57.02,164.59,164.58,0.74]
[1752513676289,63.09570326,164.59,164.58,0.74]
[1752513676678,57.02,164.59,164.58,0.74]
[1752513678294,57.02,164.59,164.52,16.81468397]
[1752513678478,57.02,164.59,164.57,7.38570574]
[1752513679367,57.02,164.59,164.53,6.07791892]
[1752513679896,57.02,164.59,164.57,7.38570574]
[1752513680081,57.02,164.59,164.58,0.71]
[1752513680494,31.02,164.59,164.58,0.71]
[1752513681580,31.0,164.59,164.58,0.71]
[1752513681890,147.9,164.6,164.58,0.71]
[1752513682097,31.0,164.59,164.56,7.73745947]
[1752513682291,31.0,164.59,164.58,7.38570574]
[1752513682679,31.0,164.59,164.58,8.09570574]
[1752513682998,147.9,164.6,164.58,0.71]
[1752513683368,31.0,164.59,164.58,0.71]
[1752513683572,147.9,164.6,164.58,0.71]
[1752513683876,31.0,164.59,164.58,0.71]
[1752513684093,31.0,164.59,164.57,7.38570574]
[1752513684598,31.0,164.59,164.58,0.71]
[1752513685227,31.0,164.59,164.56,1.6607]
[1752513685496,37.07570326,164.59,164.56,0.71]
[1752513686401,31.0,164.59,164.56,0.71]
[1752513686591,31.0,164.59,164.57,14.17200582]
[1752513686793,31.0,164.59,164.58,0.71]
[1752513686995,31.0,164.59,164.58,8.09570574]
[1752513687192,31.0,164.59,164.58,0.71]
[1752513687584,147.9,164.6,164.58,8.09570574]
[1752513687790,147.9,164.6,164.59,7.38570574]
[1752513687977,178.92,164.6,164.59,8.09570574]
[1752513689626,178.92,164.6,164.58,7.38570574]
[1752513689798,178.92,164.6,164.59,0.66]
[1752513690503,178.92,164.6,164.58,7.38570574]
[1752513690706,178.92,164.6,164.58,0.66]
[1752513691013,179.61,164.6,164.56,0.66]
[1752513691209,178.92,164.6,164.57,8.04570574]
[1752513691404,178.92,164.6,164.57,0.66]
[1752513691717,147.9,164.6,164.58,0.66]
[1752513692118,31.02,164.59,164.58,0.66]
[1752513692900,147.9,164.6,164.58,0.66]
[1752513693109,31.02,164.59,164.58,8.04570574]
[1752513693498,147.9,164.6,164.58,14.12177816]
[1752513693703,147.9,164.6,164.59,7.38570574]
[1752513694010,178.92,164.6,164.59,8.04570574]
[1752513695423,178.92,164.6,164.59,7.38570574]
[1752513695620,178.92,164.6,164.58,7.38570574]
[1752513695927,178.92,164.6,164.58,8.04570574]
[1752513696831,0.69,164.59,164.54,0.66]
[1752513697013,31.0,164.58,164.55,0.69]
[1752513697915,31.0,164.58,164.56,8.04570574]
[1752513698223,31.0,164.58,164.57,0.66]
[1752513698416,31.0,164.58,164.56,7.38570574]
[1752513698622,31.0,164.58,164.56,8.04570574]
[1752513699511,31.0,164.58,164.56,7.38570574]
[1752513699830,37.76617875,164.58,164.55,0.03]
[1752513700030,37.76617875,164.58,164.55,6.85116082]
[1752513700332,0.69,164.57,164.55,0.03]
[1752513700633,31.02,164.56,164.55,0.03]
[1752513701132,31.02,164.56,164.55,7.51116082]
[1752513701444,37.09681088,164.56,164.55,0.03]
[1752513701639,31.02,164.56,164.55,0.03]
[1752513702336,30.87880562,164.56,164.55,0.03]
[1752513702740,36.9556165,164.56,164.55,0.03]
[1752513703122,37.6456165,164.56,164.55,0.03]
[1752513703516,44.46677732,164.56,164.55,0.03]
[1752513704830,89.73554103,164.56,164.52,0.03]
[1752513705050,6.82116082,164.53,164.52,0.03]
[1752513705242,37.84116082,164.53,164.52,0.03]
[1752513705444,38.53116082,164.53,164.52,0.03]
[1752513705860,44.60907974,164.53,164.52,0.03]
[1752513706027,43.91907974,164.53,164.52,0.03]
[1752513706550,43.91907974,164.53,164.51,1e-08]
[1752513706551,32.76791892,164.53,164.51,1e-08]
[1752513706756,6.82116082,164.52,164.51,1e-08]
[1752513707244,31.06,164.52,164.51,0.66000001]
[1752513708354,6.07791892,164.53,164.51,0.66000001]
[1752513708542,31.08,164.52,164.51,0.66000001]
[1752513709258,31.08,164.52,164.51,1e-08]
[1752513709564,31.77,164.52,164.51,1e-08]
[1752513709859,31.08,164.52,164.51,1e-08]
[1752513710331,37.15828835,164.52,164.51,1e-08]
[1752513710729,6.07828835,164.52,164.51,1e-08]
[1752513711034,6.07828835,164.52,164.51,0.66000001]
[1752513711232,31.08,164.52,164.51,0.66000001]
[1752513711533,31.08,164.52,164.51,1e-08]
[1752513712343,43.07954767,164.52,164.51,1e-08]
[1752513712535,74.13954767,164.52,164.51,1e-08]
[1752513713240,78.20595545,164.52,164.51,1e-08]
[1752513713455,16.78468397,164.49,164.43,0.66]
[1752513713647,11.37797535,164.46,164.43,0.66]
[1752513713845,31.1,164.45,164.43,0.66]
[1752513714044,0.69,164.48,164.43,0.66]
[1752513714257,6.08087564,164.45,164.43,0.66]
[1752513714448,31.1,164.44,164.43,0.66]
[1752513715843,31.1,164.44,164.39,26.2]
[1752513715844,49.24924512,164.44,164.39,0.2]
[1752513716173,49.24924512,164.44,164.4,0.66]
[1752513716556,49.24924512,164.44,164.41,0.66]
[1752513716870,48.55924512,164.44,164.41,0.66]
[1752513717168,18.14924512,164.44,164.39,0.2]
[1752513717364,18.14924512,164.44,164.4,0.66]
[1752513717365,11.37797535,164.43,164.4,0.66]
[1752513717665,26.0,164.47,164.41,12.03797535]
[1752513717859,165.35749492,164.49,164.42,6.74191753]
[1752513718062,32.07951957,164.49,164.44,11.37797535]
[1752513718256,13.22601561,164.51,164.48,11.37797535]
[1752513718448,31.38,164.5,164.48,12.08797535]
[1752513719045,31.38,164.5,164.49,0.71]
[1752513719769,31.38,164.5,164.47,12.08797535]
[1752513719970,31.38,164.5,164.47,11.37797535]
[1752513720271,37.45915079,164.5,164.48,0.71]
[1752513720662,31.38,164.5,164.48,0.71]
[1752513720849,37.45903065,164.5,164.48,0.71]
[1752513721045,12.06797535,164.49,164.43,0.03]
[1752513721268,11.37797535,164.46,164.43,0.03]
[1752513721469,31.36,164.48,164.43,0.03]
[1752513721470,11.37797535,164.44,164.43,0.03]
[1752513721666,42.73797535,164.44,164.43,0.03]
[1752513721973,75.50922078,164.44,164.43,0.03]
[1752513722450,92.29390475,164.44,164.43,1e-08]
[1752513724367,95.46222712,164.44,164.43,1e-08]
[1752513725071,78.65754315,164.44,164.43,1e-08]
[1752513725452,81.69671112,164.44,164.43,1e-08]
[1752513725859,70.31873577,164.44,164.43,1e-08]
[1752513726074,78.65754315,164.44,164.43,1e-08]
[1752513726788,47.31754315,164.44,164.43,1e-08]
[1752513726970,95.44222712,164.44,164.43,1e-08]
[1752513727170,60.93390475,164.44,164.43,1e-08]
[1752513727375,92.27390475,164.44,164.43,1e-08]
[1752513729376,95.30224628,164.44,164.43,1e-08]
[1752513730277,63.96224628,164.44,164.43,1e-08]
[1752513730472,75.46922078,164.44,164.43,1e-08]
[1752513732971,75.50922078,164.44,164.43,1e-08]
[1752513736691,75.48922078,164.44,164.43,1e-08]
[1752513738904,78.65715751,164.44,164.43,1e-08]
[1752513739518,95.44184148,164.44,164.43,1e-08]
[1752513739902,69.44184148,164.44,164.43,1e-08]
[1752513741717,9.24918216,164.44,164.43,1e-08]
[1752513741916,63.40124543,164.44,164.43,1e-08]
[1752513742100,74.77922078,164.44,164.43,1e-08]
[1752513742303,78.63578516,164.44,164.43,1e-08]
[1752513743002,35.24780981,164.44,164.43,1e-08]
[1752513743187,37.38124543,164.44,164.43,1e-08]
[1752513743389,48.75922078,164.44,164.43,1e-08]
[1752513743808,37.38124543,164.44,164.43,1e-08]
[1752513744390,48.75922078,164.44,164.43,1e-08]
[1752513744622,37.38124543,164.44,164.43,1e-08]
[1752513744799,48.75922078,164.44,164.43,1e-08]
[1752513745732,49.44922078,164.44,164.43,1e-08]
[1752513745900,49.50922078,164.44,164.43,1e-08]
[1752513746412,75.50922078,164.44,164.43,1e-08]
[1752513746715,92.29390475,164.44,164.43,1e-08]
[1752513746920,66.29390475,164.44,164.43,1e-08]
[1752513747131,70.3495235,164.44,164.43,1e-08]
[1752513748123,71.8659235,164.44,164.43,1e-08]
[1752513748515,78.0649235,164.44,164.43,1e-08]
[1752513749209,88.0649235,164.44,164.43,1e-08]
[1752513750128,78.0449235,164.44,164.43,1e-08]
[1752513755747,46.7649235,164.44,164.43,1e-08]
[1752513756030,4.11561875,164.44,164.43,1e-08]
[1752513756321,0.06,164.44,164.43,0.71000001]
[1752513756523,0.06,164.44,164.43,12.08797536]
[1752513756735,31.3,164.44,164.43,12.08797536]
[1752513757130,31.3,164.44,164.43,7.54186729]
[1752513758221,0.06,164.44,164.43,7.54186729]